Cogmind - Beta 13 @@@ ROGUE MODE // 2024.04.02 @ 09:38:56 Player: weppet Result: Destroyed by Y-45 Defender with Heavy Assault Rifle Performance ------------- Evolutions (2) 1000 Regions Visited (6) 1200 Robots Destroyed (17) 85 Value Destroyed (644) 644 Prototype IDs (1) 20 Alien Tech Used (0) 0 Bonus (258) 258 TOTAL SCORE: 3207 Bonus ------- Aligned with FarCom 300 Friendly Fire -42 Cogmind --------- Core Integrity 0/550 Matter 116/300 Energy 150/150 System Corruption 0% Temperature Cool (0) Movement Treading (240) Ox1 Location -8/Storage Parts ------- > --- POWER (2) -------- Light Ion Engine Light Ion Engine > --- PROPULSION (2) --- Light Treads > --- UTILITY (5) ------ Small Storage Unit Improved Sensor Array > --- WEAPON (2) ------- Beam Cannon Advanced Assault Cannon > --- INVENTORY (8) ---- Light Ion Engine Flight Unit Medium Storage Unit Trap Scanner Improved Sensor Array Improved Light Armor Plating Improved Trap Extractor (0/6) Light Assault Rifle Peak State ------------ > --- POWER ------------ Light Deuterium Engine Light Nuclear Core > --- PROPULSION ------- Wheel Compact Wheel > --- UTILITY ---------- Small Storage Unit Improved Sensor Array Experimental Sensor Array Advanced Targeting Computer Hardened Medium Armor Plating > --- WEAPON ----------- Advanced Assault Cannon Advanced Assault Cannon > --- INVENTORY -------- Light Ion Engine Medium Storage Unit Trap Scanner Improved Sensor Array Improved Light Armor Plating Improved Trap Extractor Beam Cannon Advanced Assault Cannon [Rating: 37] Favorites ----------- Power Light Deuterium Engine Engine Light Deuterium Engine Power Core Light Nuclear Core Propulsion Aluminum Leg Treads Light Treads Leg Aluminum Leg Wheel Wheel Utility Small Storage Unit Device Heat Sink Storage Small Storage Unit Processor Terrain Scan Processor Protection Improved Light Armor Plating Weapon Mini Grenade Launcher Energy Cannon Beam Cannon Ballistic Gun Assault Rifle Ballistic Cannon Advanced Assault Cannon Launcher Mini Grenade Launcher Build | -11 -10 -10 -10 -9 -8 -8 ------- Run | Yrd Mat Min Exi Min Mat Sto Slots Evolved 4 | . . . . . 4 . Power 1 | . . . . . 1 . Propulsion . | . . . . . . . Utility 3 | . . . . . 3 . Weapon . | . . . . . . . Parts Attached 45 | 7 1 6 1 3 18 9 Power 9 | 2 . 2 . . 2 3 Engine 8 | 2 . 2 . . 1 3 Core 1 | . . . . . 1 . Reactor . | . . . . . . . Propulsion 7 | 2 . 2 . . 2 1 Treads 3 | 2 . . . . . 1 Leg 2 | . . 2 . . . . Wheel 2 | . . . . . 2 . Hover . | . . . . . . . Flight . | . . . . . . . Utility 19 | 1 1 . 1 3 12 1 Device 11 | . 1 . . . 9 1 Storage 3 | 1 . . . 2 . . Processor 2 | . . . . 1 1 . Hackware . | . . . . . . . Protection 3 | . . . 1 . 2 . Artifact . | . . . . . . . Weapon 10 | 2 . 2 . . 2 4 Energy Gun 1 | . . 1 . . . . Energy Cannon 1 | . . . . . . 1 Ballistic Gun 2 | 2 . . . . . . Ballistic Cannon 5 | . . . . . 2 3 Launcher 1 | . . 1 . . . . Special Weapon . | . . . . . . . Impact Weapon . | . . . . . . . Slashing Weapon . | . . . . . . . Piercing Weapon . | . . . . . . . Special Melee Weapon . | . . . . . . . Unidentified Prototypes 1 | . . . . . . 1 Parts Lost 16 | . . 6 . 2 . 8 Power 4 | . . 1 . 1 . 2 Propulsion 4 | . . 2 . . . 2 Utility 2 | . . . . . . 2 Weapon 6 | . . 3 . 1 . 2 Highest Loss Streak 7 | . . 6 . 1 . 7 To Critical Strikes . | . . . . . . . Average Slot Usage (%) 82 | . 90 87 85 75 85 69 Engine 10 | . 14 13 14 6 8 6 Treads 4 | . 28 12 . . . 4 Leg 16 | . . 15 28 28 1 . Wheel 3 | . . . . . 17 6 Device 5 | . 5 14 . . 10 12 Storage 12 | . 14 14 14 14 9 9 Processor 4 | . . . . 9 12 5 Protection 7 | . . . 13 4 8 3 Ballistic Gun 3 | . 28 12 . . . . Ballistic Cannon 4 | . . . . . 17 13 Launcher 7 | . . 5 14 12 . . Naked Turns . | . . . . . . . Heaviest Build 37 | 14 15 15 14 14 34 37 Greatest Support 40 | 40 40 40 20 20 26 26 Greatest Overweight (x) 12 | . . . . . 1 12 Average Overweight (x) . | . . . . . . . Largest Inventory Capacity 25 | 8 8 8 8 25 8 8 Average Capacity 7 | 7 8 8 8 8 8 8 Most Carried 9 | 5 6 6 8 9 8 8 Average Carried 6 | 4 5 4 7 7 7 7 Final Capacity 8 | 8 8 8 8 8 8 8 Final Carried 8 | 5 5 5 8 8 8 8 Class Distribution -------------------- 87% | Mutant 12% | Skirmisher Dominant Class ---------------- Mutant | -10/Materials Mutant | -10/Mines Mutant | -10/Exiles Mutant | -9/Mines Mutant | -8/Materials Skirmisher | -8/Storage Resources | -11 -10 -10 -10 -9 -8 -8 ----------- Run | Yrd Mat Min Exi Min Mat Sto Matter Collected 958 | 183 50 190 20 75 165 275 Remotely . | . . . . . . . Salvage Created 437 | . 84 20 . 68 125 140 Parts 22 | . 6 . . 4 6 6 Haulers Intercepted . | . . . . . . . Recyclers Shooed . | . . . . . . . Parts Field Recycled . | . . . . . . . Retrieved Matter . | . . . . . . . Parts Self-Destructed . | . . . . . . . Prevented . | . . . . . . . Kills | -11 -10 -10 -10 -9 -8 -8 ------- Run | Yrd Mat Min Exi Min Mat Sto Combat Hostiles Destroyed 16 | . 2 . . 4 5 5 Guns 2 | . 2 . . . . . Cannons 10 | . . . . . 5 5 AOE 4 | . . . . 4 . . Classes Destroyed 5 | . 1 . . 2 1 1 Watcher 1 | . . . . . . 1 Swarmer 3 | . . . . 1 . 2 Grunt 9 | . 2 . . 2 3 2 Duelist 1 | . . . . 1 . . Sentry 3 | . . . . . 2 1 Best Kill Streak 3 | . 2 . . 3 3 2 Combat Bots Only 3 | . 2 . . 3 3 2 Max Kills in Single Turn 1 | . 1 . . 1 1 1 Gunslinging . | . . . . . . . Exploded 1 | . . . . 1 . . Melee . | . . . . . . . Uniques/NPCs Destroyed . | . . . . . . . Combat | -11 -10 -10 -10 -9 -8 -8 -------- Run | Yrd Mat Min Exi Min Mat Sto Hostile Shots Fired 200 | . 27 21 . 13 26 113 Missed 50 | . 6 3 . 4 10 27 Damage Taken 2880 | . 248 608 . 319 246 1459 Core 800 | . 55 158 . 33 14 540 Absorbed by Shields . | . . . . . . . Core Remaining (%) 50 | 100 . . . 1 . . Volleys Fired 65 | . 13 8 1 7 15 21 Largest 2 | . 2 2 1 1 2 2 Hottest 108 | . 40 40 30 30 96 108 Shots Fired 114 | . 26 15 1 7 30 35 Gun 41 | . 26 15 . . . . Cannon 65 | . . . . . 30 35 Launcher 8 | . . . 1 7 . . Special . | . . . . . . . Kinetic 101 | . 26 15 . . 30 30 Thermal 5 | . . . . . . 5 Explosive 8 | . . . 1 7 . . Electromagnetic . | . . . . . . . Robot Hit Streak 10 | . 5 2 . 3 10 9 Robot Miss Streak 7 | . 1 7 . 1 2 4 Penetration Max . | . . . . . . . Secondary Targets . | . . . . . . . Shots Hit Robots 68 | . 18 4 . 3 24 19 Core Hits 32 | . 5 3 . 6 8 10 Critical Kills . | . . . . . . . Critical Parts Destroyed . | . . . . . . . Critical Strikes 6 | . . . . . 5 1 Blast 6 | . . . . . 5 1 Melee Attacks . | . . . . . . . Impact . | . . . . . . . Slashing . | . . . . . . . Piercing . | . . . . . . . Sneak Attacks . | . . . . . . . Combat Hostiles . | . . . . . . . Follow-up Attacks . | . . . . . . . Damage Inflicted 1804 | . 225 112 . 286 632 549 Guns 309 | . 225 84 . . . . Cannons 1181 | . . . . . 632 549 Explosions 286 | . . . . 286 . . Melee . | . . . . . . . Ramming 28 | . . 28 . . . . Kinetic 1456 | . 225 84 . . 632 515 Thermal 34 | . . . . . . 34 Explosive 286 | . . . . 286 . . Electromagnetic . | . . . . . . . Impact . | . . . . . . . Slashing . | . . . . . . . Piercing . | . . . . . . . Highest Corruption . | . . . . . . . Average Corruption . | . . . . . . . Corruption Purged . | . . . . . . . Corruption Blocked . | . . . . . . . Overload Shots . | . . . . . . . Overflow Damage 40 | . . . . 16 . 24 Projectiles 24 | . . . . . . 24 Explosions 16 | . . . . 16 . . Melee . | . . . . . . . Knockbacks 11 | . . . . . 7 4 Impact . | . . . . . . . Kinetic 10 | . . . . . 6 4 Secondary 1 | . . . . . 1 . Self-Inflicted Damage 202 | . . . . 202 . . Shots 5 | . . . . 5 . . Rammed . | . . . . . . . Targets Rammed 3 | . . 3 . . . . Kicked 3 | . . 3 . . . . Crushed . | . . . . . . . Highest Temperature 594 | . 9 . . 4 180 594 Average Temperature 146 | . 4 . . 3 83 235 Received Heat Transfer 696 | . 141 . . 6 135 414 Effects 22 | . . . . . . 22 Shutdowns 4 | . . . . . . 4 Energy Bleed 1 | . . . . . . 1 Interference 3 | . . . . . . 3 Matter Decay 1 | . . . . . . 1 Short Circuit 1 | . . . . . . 1 Damage (minor) 3 | . . . . . . 3 Damage (major) 5 | . . . . . . 5 Damage (core) 4 | . . . . . . 4 Siege Activations . | . . . . . . . Robots Corrupted . | . . . . . . . Combat Hostiles . | . . . . . . . Parts Fried . | . . . . . . . Impact Corruptions . | . . . . . . . Robots Melted . | . . . . . . . Combat Hostiles . | . . . . . . . Parts Melted . | . . . . . . . Heat Transferred 74 | . . . . . . 74 Parts Sabotaged . | . . . . . . . Parts Stolen . | . . . . . . . Parts Stripped . | . . . . . . . Power Chain Reactions . | . . . . . . . Alert | -11 -10 -10 -10 -9 -8 -8 ------- Run | Yrd Mat Min Exi Min Mat Sto Peak Influence 235 | . 65 25 . 155 224 235 Initial 94 | . . 25 . . 58 94 Average 77 | . 42 10 . 118 102 153 Maximum Alert Level 1 | . . . . . 1 1 Low Security (%) 93 | 100 100 100 . 100 83 79 Level 1 6 | . . . . . 16 20 Level 2 . | . . . . . . . Level 3 . | . . . . . . . Level 4 . | . . . . . . . Level 5 . | . . . . . . . High Security . | . . . . . . . Max Security . | . . . . . . . Squads Dispatched 7 | . 3 . . . . 4 Investigation 2 | . 1 . . . . 1 Extermination . | . . . . . . . Reinforcement 3 | . 2 . . . . 1 Assault . | . . . . . . . Garrison 2 | . . . . . . 2 Intercept . | . . . . . . . Searches Triggered . | . . . . . . . Construction Impeded . | . . . . . . . Haulers Reinforced . | . . . . . . . Active Scanning Responses . | . . . . . . . Cargo Convoy Interrupts . | . . . . . . . Stealth | -11 -10 -10 -10 -9 -8 -8 --------- Run | Yrd Mat Min Exi Min Mat Sto Distress Signals 2 | . 1 . . . . 1 Communications Jammed . | . . . . . . . Distress Signals . | . . . . . . . Times Spotted 36 | . 5 5 . 5 8 13 Peak Tracking Total 5 | . 2 3 . 3 3 5 Tactical Retreats 2 | . . . . 1 . 1 Traps | -11 -10 -10 -10 -9 -8 -8 ------- Run | Yrd Mat Min Exi Min Mat Sto Traps Triggered . | . . . . . . . Indirectly . | . . . . . . . Trap Hack Attempts . | . . . . . . . Triggered . | . . . . . . . Disarmed . | . . . . . . . Reprogrammed . | . . . . . . . Reused . | . . . . . . . Traps Extracted . | . . . . . . . Installed . | . . . . . . . Triggered . | . . . . . . . Machines | -11 -10 -10 -10 -9 -8 -8 ---------- Run | Yrd Mat Min Exi Min Mat Sto Machines Disabled 2 | . . . . . . 2 Max in Single Turn 1 | . . . . . . 1 Machines Repaired . | . . . . . . . Machines Dismantled . | . . . . . . . Machines Sabotaged . | . . . . . . . Overloaded Fab Kills . | . . . . . . . Hacking | -11 -10 -10 -10 -9 -8 -8 --------- Run | Yrd Mat Min Exi Min Mat Sto Machines Accessed 8 | . . . 4 . 1 3 Terminals 2 | . . . . . 1 1 Fabricators . | . . . . . . . Repair Stations 1 | . . . . . . 1 Recycling Units . | . . . . . . . Scanalyzers . | . . . . . . . Garrison Access 1 | . . . . . . 1 Total Hacks 63 | . . . 49 . 2 12 Successful 58 | . . . 49 . 2 7 Failed 3 | . . . . . . 3 Catastrophic . | . . . . . . . Database Lockouts 2 | . . . . . . 2 Manual . | . . . . . . . Terminals 12 | . . . . . 2 10 Fabricators . | . . . . . . . Repair Stations 1 | . . . . . . 1 Recycling Units . | . . . . . . . Scanalyzers . | . . . . . . . Garrison Access 1 | . . . . . . 1 Terminal Hacks 56 | . . . 49 . 2 5 Record 55 | . . . 49 . 1 5 Alert Level 1 | . . . . . 1 . Fabricator Hacks . | . . . . . . . Repair Station Hacks 1 | . . . . . . 1 Scan Component 1 | . . . . . . 1 Recycling Unit Hacks . | . . . . . . . Scanalyzer . | . . . . . . . Garrison Access Hacks 1 | . . . . . . 1 Unlock Access 1 | . . . . . . 1 Unauthorized Hacks . | . . . . . . . Terminals . | . . . . . . . Fabricators . | . . . . . . . Repair Stations . | . . . . . . . Recycling Units . | . . . . . . . Scanalyzers . | . . . . . . . Garrison Access . | . . . . . . . Data Cores Recovered . | . . . . . . . Used . | . . . . . . . Hacking Detections 2 | . . . . . 1 1 Full Trace Events 1 | . . . . . . 1 Feedback Events . | . . . . . . . Feedback Blocked . | . . . . . . . Robot Schematics Acquired . | . . . . . . . Robots Built . | . . . . . . . Authchips . | . . . . . . . Time . | . . . . . . . Total Robot Build Rating . | . . . . . . . Part Schematics Acquired . | . . . . . . . Parts Built . | . . . . . . . Authchips . | . . . . . . . Time . | . . . . . . . Total Part Build Rating . | . . . . . . . Parts Repaired . | . . . . . . . Time . | . . . . . . . Parts Recycled . | . . . . . . . Recycled Matter . | . . . . . . . Retrieved Matter . | . . . . . . . Retrieved Components . | . . . . . . . Parts Scanalyzed . | . . . . . . . Part Schematics Acquired . | . . . . . . . Parts Damaged . | . . . . . . . Bothacking | -11 -10 -10 -10 -9 -8 -8 ------------ Run | Yrd Mat Min Exi Min Mat Sto Used RIF Installer . | . . . . . . . Robots Hacked . | . . . . . . . Non-combat . | . . . . . . . Combat . | . . . . . . . Robot Hacks Applied . | . . . . . . . Relay Couplers Released . | . . . . . . . Fabnet Peak Effective % . | . . . . . . . Robots Rewired . | . . . . . . . Allies Hacked . | . . . . . . . Hacks Repelled . | . . . . . . . Allies | -11 -10 -10 -10 -9 -8 -8 -------- Run | Yrd Mat Min Exi Min Mat Sto Total Allies 1 | . . 1 . . . . Largest Group 1 | . . 1 1 . . . Highest-Rated Group 31 | . . 31 31 . . . Highest-Rated Ally 31 | . . 31 31 . . . Total Orders . | . . . . . . . Ally Attacks . | . . . . . . . Total Damage . | . . . . . . . Kills . | . . . . . . . Allies Corrupted . | . . . . . . . Allies Melted . | . . . . . . . Intel | -11 -10 -10 -10 -9 -8 -8 ------- Run | Yrd Mat Min Exi Min Mat Sto Robot Analysis Total . | . . . . . . . Derelict Logs Recovered 2 | . . 2 . . . . Drone Launches . | . . . . . . . Drone Recoveries . | . . . . . . . Exploration | -11 -10 -10 -10 -9 -8 -8 ------------- Run | Yrd Mat Min Exi Min Mat Sto Turns Passed 2208 | 202 128 296 663 328 356 235 Spaces Moved 1467 | 121 55 186 546 242 209 108 Core 10 | 8 . . . . . 2 Treads 281 | 113 55 63 . . . 50 Legs 917 | . . 123 546 242 6 . Wheels 259 | . . . . . 203 56 Hover . | . . . . . . . Flight . | . . . . . . . Fastest Speed 50 | 50 160 120 120 120 90 105 Average Speed 124 | 152 160 133 120 120 97 148 Slowest Speed 650 | 160 160 160 120 120 120 650 Overloaded Moves . | . . . . . . . Propulsion Burnouts . | . . . . . . . Robots Hopped . | . . . . . . . Cave-ins Triggered . | . . . . . . . Exploration Rate (%) 31 | 6 17 49 72 32 19 25 Regions Visited 6 Branch Regions 4 Pre-discovered Areas 2 | . . 1 1 . . . Known Exits Taken 1 | . . . 1 . . . Unknown Exits Taken 5 | 1 1 1 . 1 1 . Scrap Searched 2 | . . . . 2 . . Spaces Dug 21 | . . . . 21 . . Terrain Destroyed 89 | . . . 6 69 6 8 Melee . | . . . . . . . Projectile 14 | . . . . . 6 8 AOE 75 | . . . 6 69 . . Terrain Rammed . | . . . . . . . Walls Destroyed . | . . . . . . . Machines Disabled . | . . . . . . . Actions | -11 -10 -10 -10 -9 -8 -8 --------- Run | Yrd Mat Min Exi Min Mat Sto Total 1730 | 139 69 217 553 272 334 146 Wait 94 | . . 10 1 17 66 . Move 1461 | 120 54 185 545 241 208 108 Hop . | . . . . . . . Pick Up 40 | 11 1 5 4 2 11 6 Fast Attach 9 | . . . . . 8 1 Attach 25 | 6 1 5 . . 9 4 Detach 4 | . . . . . 4 . Swap 11 | 1 . 1 1 3 1 4 Drop 18 | 1 . . 1 2 12 2 Fire 65 | . 13 8 1 7 15 21 Melee . | . . . . . . . Ram . | . . . . . . . Kick 3 | . . 3 . . . . Crush . | . . . . . . . Escape Stasis . | . . . . . . . Rewire . | . . . . . . . Trap . | . . . . . . . Miscellaneous . | . . . . . . . Route ------- -11/Scrapyard -10/Materials -10/Mines -10/Exiles (discovered 2 exits: *Min x2) -9/Mines -8/Materials -8/Storage (discovered 1 exit: Gar) History --------- Turn | Location | Event 6 | -11/Scrapyard | Discovered new exit (range 15) 203 | -11/Scrapyard | Entered Materials 219 | -10/Materials | Discovered new exit (range 16) 284 | -10/Materials | Met 8R-AWN 303 | -10/Materials | Build established: Mutant 331 | -10/Materials | Entered Mines 333 | -10/Mines | Followed 8R-AWN into the Mines 401 | -10/Mines | Assembled infested the area 458 | -10/Mines | Core integrity fell below 50% 468 | -10/Mines | Core integrity fell below 20% 500 | -10/Mines | Lost 6 parts (1p2n3w) 544 | -10/Mines | Found a damaged Exp. Sensor Array with a note attached 547 | -10/Mines | Found Prototype Device 614 | -10/Mines | Discovered new exit (range 10) 618 | -10/Mines | Received a Mining Laser from a helpful Derelict 627 | -10/Mines | Entered Exiles 627 | -10/Exiles | Accompanied by 1 ally 628 | -10/Exiles | Identified exit to Mines 711 | -10/Exiles | Welcomed by 8R-AWN 739 | -10/Exiles | Met EX-HEX 808 | -10/Exiles | Met EX-DEC 844 | -10/Exiles | Learned location of Zion (-7) 1016 | -10/Exiles | Met EX-BIN 1037 | -10/Exiles | Aligned with FarCom system 1038 | -10/Exiles | Given EX-Vault access code 1290 | -10/Exiles | Entered Mines 1327 | -9/Mines | Met a Derelict bent on vengeance 1595 | -9/Mines | Discovered new exit (range 8) 1618 | -9/Mines | Entered Materials 1618 | -8/Materials | Evolved 4 slots: Power x1, Utility x3 1914 | -8/Materials | Discovered new exit (range 5) 1974 | -8/Materials | Entered Storage 1989 | -8/Storage | Identified exit to Garrison 1994 | -8/Storage | Identified Exp. Sensor Array 2050 | -8/Storage | Garrison activated, responded to threat 2069 | -8/Storage | Core integrity fell below 50% 2071 | -8/Storage | Core integrity fell below 20% 2120 | -8/Storage | Central database locked down 2120 | -8/Storage | Central database locked down 2124 | -8/Storage | Lost 7 parts (2p2n2u1w) 2209 | -8/Storage | Destroyed by Y-45 Defender with Heavy Assault Rifle Last Messages --------------- Destroyed Flight Unit. S-10 Pest knocked back. Storage Shell breached. S-10 Pest destroyed. Destroyed Flight Unit. Adv. Assault Cannon destroyed. S-10 Pest destroyed. U-05 Engineer builds a Wall. Destroyed Flight Unit. S-10 Pest knocked back. U-05 Engineer builds a Wall. Acquired 18 matter. S-10 Pest destroyed. Terminal disabled. Acquired 26 matter. Acquired Lgt. Ion Engine. Acquired Lgt. Assault Rifle. Acquired Lgt. Ion Engine. Acquired Flight Unit. K-01 Serf collects debris. Map ----- +----------------------------------------------------+ | ????????#"G> # #???????? | | ????????#""" # """"" #???????? | | ????????#### # """"" #???????? | | ???????????# # """"" #???????? | | ???????????##" "###### #???????? | | ????????????#"R"#????######/###???????? | | ????????????#"""#?????????# #?######??? | | ????????????#####?????????# #? """ #??? | | ??????????????????????????# # """ ""?? | | ??????????????????????????# # """ R"# | | ?????????????????####?????# + """# | | ?????????????????? ?????# # ##?? | | ???????Y?????????? T ?????# # / #??? | | ?????????????????? ?????# #?######??? | | ??????????????????# #?????# #?????????? | | ??????????????????# #????## ##????????? | | ??????????????????# ###### #????????? | | ?????????????###### #????????? | | ?????????????? # #????????? | | ?????????????"""% #% #########???? | | ?????????????"!"= #% g | | ??????????????%" += g | | ?????????????"!" k# g | | ????????????""" k### ################# | | ????????# """ #?# #???????????????? | | ????????# Y @ #?# #???????????????? | | ????????###########?#/#?????Y?????????? | | ???????????????????? ???????????????? | | ???????????????????? ???????????????? | | ???????????????????? ???????????????? | | ??????????????????? ??????????????? | | ??????????????????? ??????????????? | | ??????????????????? ??????????????? | | ??????????????????? ??????????????? | | ??????????????????+######?????????????? | | ??????????????????????????????????????? | | ??????????????????????????????????????? | | ?????????????w????????????????????????? | | ?????????o????????????????????????????? | | ??????????????????????????????????????? | | ??????????????????????????????????????? | | ?????????????????????Y????????????????? | | ??????????????????????????????????????? | | ??????????????????????????????????????? | | ??????????????????????????????????????? | | ??????????????????????????????????????? | | ??????????????????????????????????????? | | ??????????????????????????????????????? | | ??????????????????????????????????????? | | ??????????????????????????????????????? | +----------------------------------------------------+ Best States ------------- Heat Dissipation 35 Energy Generation 23 Energy Capacity 250 Matter Stores 300 Matter Capacity 300 Sight Range 16 Robot Scan Range 20 Terrain Scan Density 85 Armor Coverage 225 Evasion (%) 55 Targeting Accuracy 8 Recoil Reduction 2 Trap Extractor Capacity 6 Item Schematics ----------------- None Robot Schematics ------------------ None Fabricated ------------ Nothing Alien Tech Used ----------------- None Achievements -------------- Close Call Crack Shot Oops Tourist Troublemaker Challenges ------------ None Game ------ Seed MatterIonChainsword Manual? 0 Play Time 00:45:53 Cumulative 3.2 hours Start 2024.04.01 @ 18:23:17 End 2024.04.02 @ 09:38:56 Sessions 5 Manual Loads 0 Difficulty Rogue Special Mode None Game No. 4 Rogue 4 Adventurer 0 Explorer 0 Win Type - Total 0 Types 0/0/0/0/0/0/0/0/0 Lore% 9 Gallery% 5 Achievement% 7 Wizard Run 0 Options --------- Layout 1 ASCII 0 Keyboard 0 Movement Mouse Keybinds 0 Fullscreen 2 Font 24/Smallcaps Map View 50x35 Zoom Use 0% Tactical HUD 0 Map Filters NONE Filters NONE Steam 1 RUN: 93bff77a-1acb-43ef-96a9-11dfad679ee0